Cogmind - Beta 11 X4 --- EXPLORER MODE // 2021.05.20 @ 07:18:30 Player: Luigi Panache Result: Destroyed by G-67 Veteran with Electrolaser Performance ------------- Evolutions (7) 3500 Regions Visited (23) 4600 Robots Destroyed (130) 650 Value Destroyed (4896) 4896 Prototype IDs (42) 840 Alien Tech Used (0) 0 Bonus (5123) 5123 TOTAL SCORE: 19609 Bonus ------- High Alert Combat Kills 34 Follower Combat Kills 254 Entered Garrisons 1400 Used RIF Installer 3000 Aligned with FarCom 300 Met Data Miner 300 Friendly Fire -165 Cogmind --------- Core Integrity 0/1300 Matter 105/300 Energy 184/340 System Corruption 17% Temperature Cool (73) Movement Treading (260) Ox1 Location -3/Garrison Parts ------- > --- POWER (2) -------- Particle Reactor > --- PROPULSION (8) --- Medium Treads Gyrokinetic Inverter > --- UTILITY (10) ----- Large Storage Unit Relay Coupler [NC] (53) Relay Coupler [Swarmer] (59) Relay Coupler [Brawler] (57) Relay Coupler [Duelist] (53) Relay Coupler [Hunter] (5) > --- WEAPON (2) ------- Quantum Rifle > --- INVENTORY (15) --- Large Storage Unit Launcher Loader Experimental ECM Suite System Backup Module Proton Cannon Latent Energy Streamer Nova Cannon Remote Datajack Peak State ------------ > --- POWER ------------ Improved Ion Engine Neutrino Core > --- PROPULSION ------- Antigrav System Cooled Gravmag System Combat Gravmag System Combat Gravmag System Combat Gravmag System Combat Gravmag System Improved Gyrokinetic Inverter Improved Linear Gravjet > --- UTILITY ---------- Advanced Heat Sink Improved Coolant Injector Large Storage Unit Experimental ECM Suite Hardened Medium Armor Plating Light Regenerative Plating Light Regenerative Plating Relay Coupler [NC] Relay Coupler [Sentry] > --- WEAPON ----------- Flak Gun Railgun > --- INVENTORY -------- Light Ion Engine Combat Airjet Gravmag Array Gyrokinetic Inverter Large Storage Unit Launcher Loader Relay Coupler [Sentry] Relay Coupler [Hunter] System Backup Module Proton Cannon Latent Energy Streamer Flak Gun Remote Datajack [Rating: 116] Favorites ----------- Power Ion Engine Engine Ion Engine Power Core Neutrino Core Reactor Particle Reactor Propulsion Light Treads Treads Light Treads Leg Aluminum Leg Hover Unit Combat Gravmag System Flight Unit Cesium-ion Thruster Utility Large Storage Unit Device Heat Sink Storage Large Storage Unit Processor Targeting Computer Hackware Relay Coupler [Sentry] Protection Light Regenerative Plating Weapon Heavy EM Shotgun Energy Gun Heavy EM Shotgun Energy Cannon Latent Energy Streamer Ballistic Gun Flak Gun Ballistic Cannon Heavy Gauss Cannon Launcher Smartbomb Launcher Special Weapon Remote Datajack Special Melee Weapon Improved Datajack Build | -11 -10 -10 -10 -9 -8 -8 -8 -8 -7 -7 -6 -6 -6 -6 -5 -5 -5 -4 -4 -4 -4 -3 -3 ------- Run | Scr Mat Min Exi Min Mat Gar Mat Gar Fac Gar Fac Low Low Dat Pro Fac Gar Fac Gar Fac Gar Res Gar Slots Evolved 15 | . 1 . . . 4 . . . 2 . 2 . . . . 2 . 2 . . . 2 . Power 1 | . . . . . . . . . . . . . . . . . . . . . . 1 . Propulsion 6 | . . . . . 2 . . . 1 . 1 . . . . 1 . 1 . . . . . Utility 8 | . 1 . . . 2 . . . 1 . 1 . . . . 1 . 1 . . . 1 . Weapon . | . . . . . . . . . . . . . . . . . . . . . . . . Parts Attached 127 | . 3 . 1 . 12 6 8 . 2 7 1 1 4 . 11 22 . 8 . 6 . 23 12 Power 11 | . . . . . . . 1 . . . . . 1 . 2 1 . . . 1 . 4 1 Engine 6 | . . . . . . . 1 . . . . . 1 . 1 . . . . . . 3 . Core 4 | . . . . . . . . . . . . . . . 1 1 . . . 1 . 1 . Reactor 1 | . . . . . . . . . . . . . . . . . . . . . . . 1 Propulsion 43 | . 2 . . . 3 5 4 . 1 . 1 . 2 . 5 10 . 2 . . . 7 1 Treads 12 | . 2 . . . 3 5 . . . . . . . . . . . . . . . 1 1 Leg . | . . . . . . . . . . . . . . . . . . . . . . . . Wheel . | . . . . . . . . . . . . . . . . . . . . . . . . Hover 30 | . . . . . . . 4 . 1 . 1 . 2 . 4 10 . 2 . . . 6 . Flight 1 | . . . . . . . . . . . . . . . 1 . . . . . . . . Utility 42 | . 1 . 1 . 7 1 1 . 1 2 . 1 . . 1 8 . 6 . 2 . 4 6 Device 13 | . . . . . 1 1 . . . . . 1 . . 1 4 . 1 . 1 . 3 . Storage 6 | . . . 1 . . . . . . . . . . . . 2 . 2 . . . 1 . Processor 4 | . . . . . 2 . 1 . 1 . . . . . . . . . . . . . . Hackware 9 | . . . . . . . . . . 2 . . . . . 1 . . . . . . 6 Protection 10 | . 1 . . . 4 . . . . . . . . . . 1 . 3 . 1 . . . Artifact . | . . . . . . . . . . . . . . . . . . . . . . . . Weapon 31 | . . . . . 2 . 2 . . 5 . . 1 . 3 3 . . . 3 . 8 4 Energy Gun 9 | . . . . . 2 . 2 . . 2 . . 1 . . . . . . . . . 2 Energy Cannon 2 | . . . . . . . . . . . . . . . . . . . . . . 2 . Ballistic Gun 10 | . . . . . . . . . . 1 . . . . 2 1 . . . 2 . 4 . Ballistic Cannon 3 | . . . . . . . . . . . . . . . . . . . . . . 2 1 Launcher 4 | . . . . . . . . . . . . . . . 1 2 . . . 1 . . . Special Weapon 2 | . . . . . . . . . . 1 . . . . . . . . . . . . 1 Impact Weapon . | . . . . . . . . . . . . . . . . . . . . . . . . Slashing Weapon . | . . . . . . . . . . . . . . . . . . . . . . . . Piercing Weapon . | . . . . . . . . . . . . . . . . . . . . . . . . Special Melee Weapon 1 | . . . . . . . . . . 1 . . . . . . . . . . . . . Unidentified Prototypes 8 | . . . . . 2 . 2 . . . . . . . . 3 . . . . . 1 . Corrupted Parts 4 | . . . . . . 1 . . . . . . 1 . 2 . . . . . . . . System Corruption 14 | . . . . . . 2 . . . . . . 2 . 10 . . . . . . . . Parts Lost 49 | . . . . . . 2 1 . . 1 . . 3 . 8 1 1 . . . 4 25 3 Power 5 | . . . . . . . . . . . . . 1 . 1 . . . . . . 3 . Propulsion 19 | . . . . . . 1 . . . 1 . . . . 5 . . . . . 1 11 . Utility 14 | . . . . . . 1 1 . . . . . . . 1 1 . . . . 2 7 1 Weapon 11 | . . . . . . . . . . . . . 2 . 1 . 1 . . . 1 4 2 Highest Loss Streak 13 | . . . . . . 2 1 . . 1 . . 2 . 6 1 1 . . . 2 13 3 Average Slot Usage (%) 86 | . 94 100 100 100 94 95 96 100 95 96 85 88 82 81 63 83 80 80 90 93 84 71 36 Engine 5 | . 12 12 12 12 8 8 8 8 7 7 6 6 5 6 4 . . . . . . 2 . Core 1 | . . . . . . . . . . . . . . . . 5 5 5 5 5 5 2 . Treads 10 | . 17 25 25 25 28 32 27 . . . . . . . . . . . . . . . . Hover 19 | . . . . . . . 3 33 33 31 29 31 29 31 19 36 38 37 40 40 38 27 4 Device 4 | . . . . . 3 1 8 8 7 7 6 7 6 6 4 4 5 5 5 8 5 9 . Storage 7 | . 12 12 12 12 8 8 8 8 7 7 6 6 6 6 6 8 11 10 10 10 7 4 4 Processor 6 | . . . . . 11 16 17 25 25 15 12 12 12 12 8 . . . . . . . . Hackware 6 | . . . . . . . . . . 12 12 12 12 12 12 12 11 10 10 10 10 7 19 Protection 10 | . 20 25 25 25 17 10 5 . . . . . . . . 4 5 13 20 16 15 8 . Energy Gun 7 | . 12 12 12 12 12 16 15 16 14 11 12 12 9 6 3 . . . . . . . . Ballistic Gun 3 | . 12 12 12 12 3 . . . . 1 . . . . 2 6 . . . 3 . 5 . Naked Turns . | . . . . . . . . . . . . . . . . . . . . . . . . Heaviest Build 77 | 20 21 21 31 31 36 36 39 36 36 36 36 36 36 31 34 77 59 58 55 73 73 71 46 Greatest Support 104 | 20 40 40 40 40 80 80 80 36 43 43 56 56 56 36 39 82 71 99 104 67 67 89 28 Greatest Overweight (x) 11 | . . . . . . 1 11 . . . . . 3 . 1 1 . . . 1 1 1 3 Average Overweight (x) . | . . . . . . . . . . . . . . . . . . . . . . . 2 Largest Inventory Capacity 25 | 10 10 10 15 15 15 15 15 15 15 15 15 15 15 15 15 15 15 25 15 15 15 15 15 Average Capacity 14 | 10 10 10 13 15 15 15 15 15 15 15 15 15 15 15 15 15 15 15 15 15 15 15 15 Most Carried 15 | 7 9 10 12 12 15 15 15 15 15 15 15 15 15 15 15 15 15 15 15 15 13 15 12 Average Carried 13 | 7 8 9 11 12 12 14 14 15 15 14 14 14 14 15 13 14 15 14 15 14 13 13 9 Final Capacity 15 | 10 10 10 15 15 15 15 15 15 15 15 15 15 15 15 15 15 15 15 15 15 15 15 15 Final Carried 15 | 7 9 10 12 12 15 15 15 15 15 15 15 15 15 15 9 15 15 15 15 13 13 13 9 Class Distribution -------------------- 57% | Bothacker-Mutant 27% | Hacker-Mutant 9% | Scavenger-Mutant 4% | Hacker-Skirmisher Dominant Class ---------------- Hacker-Mutant | -10/Materials Hacker-Mutant | -10/Mines Hacker-Mutant | -10/Exiles Hacker-Mutant | -9/Mines Hacker-Mutant | -8/Materials Scavenger-Mutant | -8/Garrison Scavenger-Mutant | -8/Materials Bothacker-Mutant | -8/Garrison Bothacker-Mutant | -7/Factory Bothacker-Mutant | -7/Garrison Bothacker-Mutant | -6/Factory Bothacker-Mutant | -6/Lower Caves Bothacker-Mutant | -6/Lower Caves Bothacker-Mutant | -6/Data Miner Bothacker-Mutant | -5/Proximity Caves Bothacker-Mutant | -5/Factory Bothacker-Mutant | -5/Garrison Bothacker-Mutant | -4/Factory Bothacker-Mutant | -4/Garrison Bothacker-Mutant | -4/Factory Bothacker-Mutant | -4/Garrison Bothacker-Mutant | -3/Research Botlord-Mutant | -3/Garrison Resources | -11 -10 -10 -10 -9 -8 -8 -8 -8 -7 -7 -6 -6 -6 -6 -5 -5 -5 -4 -4 -4 -4 -3 -3 ----------- Run | Scr Mat Min Exi Min Mat Gar Mat Gar Fac Gar Fac Low Low Dat Pro Fac Gar Fac Gar Fac Gar Res Gar Matter Collected 2652 | 171 81 . 10 . 175 156 169 10 28 83 10 10 35 . 103 219 . 90 . 227 4 985 86 Remotely . | . . . . . . . . . . . . . . . . . . . . . . . . Salvage Created 5238 | . 115 . . . 714 565 217 212 168 504 349 50 108 . 172 317 . . . 83 41 1471 152 Parts 305 | . 4 . . . 38 29 20 13 14 25 9 9 10 . 10 23 . . . 3 1 88 9 Haulers Intercepted 6 | . . . . . 2 . 1 . 1 . . . . . . 1 . . . . . 1 . Recyclers Shooed 11 | . . . . . 2 . 1 . . . 1 . . . . 1 . . . . . 6 . Parts Field Recycled . | . . . . . . . . . . . . . . . . . . . . . . . . Retrieved Matter . | . . . . . . . . . . . . . . . . . . . . . . . . Parts Self-Destructed . | . . . . . . . . . . . . . . . . . . . . . . . . Prevented . | . . . . . . . . . . . . . . . . . . . . . . . . Kills | -11 -10 -10 -10 -9 -8 -8 -8 -8 -7 -7 -6 -6 -6 -6 -5 -5 -5 -4 -4 -4 -4 -3 -3 ------- Run | Scr Mat Min Exi Min Mat Gar Mat Gar Fac Gar Fac Low Low Dat Pro Fac Gar Fac Gar Fac Gar Res Gar Combat Hostiles Destroyed 96 | . 2 . . . 12 12 6 8 1 9 2 1 3 . 5 13 . . . 1 2 16 3 Guns 68 | . 2 . . . 11 12 6 3 . 8 1 1 2 . 4 . . . . 1 . 14 3 Cannons 2 | . . . . . . . . . . . . . . . . . . . . . . 2 . AOE 21 | . . . . . 1 . . 4 . . . . 1 . 1 12 . . . . 2 . . Classes Destroyed 14 | . 2 . . . 6 1 . . . 1 1 . . . . 2 . . . . . 1 . Worker 11 | . . . . . . . . . . . . . . . . 1 . . . . . 10 . Builder 7 | . . . . . 2 . 1 . 1 . . . . . . 1 . . . . . 2 . Tunneler 2 | . . . . . . . . . . . . . . . . . . . . . . 2 . Hauler 6 | . . . . . 2 . 1 . 1 . . . . . . 1 . . . . . 1 . Recycler 2 | . . . . . 1 . . . . . 1 . . . . . . . . . . . . Operator 2 | . . . . . . . . . . . 1 . . . . . . . . 1 . . . Watcher 3 | . 1 . . . . . . . 1 . 1 . . . . . . . . . . . . Swarmer 34 | . . . . . 3 3 4 6 . 3 . . 2 . 4 7 . . . . . . 2 Grunt 28 | . 2 . . . 4 4 . 2 1 4 1 . . . 1 3 . . . . . 5 1 Brawler 2 | . . . . . . 2 . . . . . . . . . . . . . . . . . Duelist 2 | . . . . . . . . . . . . . . . . 1 . . . . 1 . . Sentry 12 | . . . . . 4 3 1 . . 2 . . . . . . . . . 1 . 1 . Hunter 8 | . . . . . 1 . 1 . . . 1 . . . . 2 . . . . . 3 . Programmer 11 | . . . . . . . . . . 1 . 1 1 . . . . . . . 1 7 . Best Kill Streak 17 | . 3 . . . 6 5 2 3 3 4 5 1 3 . 4 4 . . . 1 2 17 3 Combat Bots Only 6 | . 2 . . . 6 5 2 3 1 4 1 1 3 . 4 4 . . . 1 2 6 3 Max Kills in Single Turn 3 | . 1 . . . 1 1 2 3 1 1 1 1 1 . 2 3 . . . 1 1 2 1 Gunslinging 1 | . . . . . . . 1 . . . . . . . . . . . . . . . . Exploded 3 | . . . . . 1 . . 3 . . . . 1 . 1 3 . . . . 1 . . Melee . | . . . . . . . . . . . . . . . . . . . . . . . . Uniques/NPCs Destroyed . | . . . . . . . . . . . . . . . . . . . . . . . . Combat | -11 -10 -10 -10 -9 -8 -8 -8 -8 -7 -7 -6 -6 -6 -6 -5 -5 -5 -4 -4 -4 -4 -3 -3 -------- Run | Scr Mat Min Exi Min Mat Gar Mat Gar Fac Gar Fac Low Low Dat Pro Fac Gar Fac Gar Fac Gar Res Gar Damage Taken 9795 | . 65 . . . 537 552 94 69 18 265 48 110 210 . 667 269 142 . 384 468 754 4479 664 Core 2096 | . 11 . . . 80 202 3 25 . 15 . 28 28 . 193 13 . . 22 88 80 1075 233 Absorbed by Shields 86 | . . . . . . . . 24 . 20 . . . . . . . . 42 . . . . Core Remaining (%) 83 | 100 . . . 95 . . . 43 . 97 . . . . 70 . 98 . . . 83 . . Volleys Fired 273 | . 9 . . . 32 25 12 9 6 19 8 9 8 . 9 18 . . . 7 7 80 15 Largest 2 | . 2 . . . 2 2 2 2 2 2 2 2 2 . 2 2 . . . 2 1 2 2 Hottest 159 | . 70 . . . 106 106 106 100 100 100 100 100 100 . 56 56 . . . 56 46 122 159 Shots Fired 460 | . 18 . . . 59 48 17 18 12 34 16 18 15 . 12 21 . . . 13 7 136 16 Gun 413 | . 18 . . . 59 48 17 18 12 32 16 18 15 . 10 6 . . . 12 . 125 7 Cannon 12 | . . . . . . . . . . . . . . . . . . . . . . 11 1 Launcher 25 | . . . . . . . . . . . . . . . 2 15 . . . 1 7 . . Special 10 | . . . . . . . . . . 2 . . . . . . . . . . . . 8 Kinetic 191 | . 9 . . . 19 . . . . 2 . . . . 6 6 . . . 12 . 136 1 Thermal 79 | . 9 . . . 32 25 9 . . . . . . . . . . . . . . . 4 Explosive 23 | . . . . . . . . . . . . . . . . 15 . . . 1 7 . . Electromagnetic 157 | . . . . . 8 23 8 18 12 30 16 18 15 . 6 . . . . . . . 3 Robot Hit Streak 67 | . 13 . . . 28 30 17 31 17 57 33 35 13 . 16 30 . . . 67 5 36 17 Robot Miss Streak 8 | . 1 . . . 1 1 1 1 1 1 . 1 2 . 3 2 . . . 1 . 8 . Penetration Max 1 | . . . . . . . . . . . . . . . . . . . . . . 1 . Secondary Targets 10 | . . . . . 2 3 2 . . 1 1 . . . 1 . . . . . . . . Max Gunslinging Chain 1 | . . . . . 1 1 1 . . 1 1 . . . 1 . . . . . . . . Shots Hit Robots 407 | . 14 . . . 52 42 17 16 9 33 16 17 14 . 11 15 . . . 10 5 121 15 Core Hits 353 | . 7 . . . 30 24 11 12 6 21 12 13 10 . 16 31 . . . 13 11 132 4 Critical Kills 1 | . . . . . . . . . . . . . . . . . . . . . . 1 . Critical Parts Destroyed 1 | . . . . . . . . . . . . . . . . . . . . . . 1 . Critical Strikes 8 | . . . . . 1 3 . . . . . . . . . . . . . . . 4 . Burn 4 | . . . . . 1 3 . . . . . . . . . . . . . . . . . Destroy 2 | . . . . . . . . . . . . . . . . . . . . . . 2 . Blast 2 | . . . . . . . . . . . . . . . . . . . . . . 2 . Melee Attacks 2 | . . . . . . . . . . 2 . . . . . . . . . . . . . Impact . | . . . . . . . . . . . . . . . . . . . . . . . . Slashing . | . . . . . . . . . . . . . . . . . . . . . . . . Piercing . | . . . . . . . . . . . . . . . . . . . . . . . . Sneak Attacks . | . . . . . . . . . . . . . . . . . . . . . . . . Combat Hostiles . | . . . . . . . . . . . . . . . . . . . . . . . . Follow-up Attacks . | . . . . . . . . . . . . . . . . . . . . . . . . Damage Inflicted 12798 | . 208 3 . 31 826 833 327 537 209 629 518 70 213 . 472 2671 . . . 302 603 4152 194 Guns 8398 | . 204 . . . 770 833 314 324 209 593 454 70 145 . 211 186 . . . 251 . 3640 194 Cannons 377 | . . . . . . . . . . . . . . . . . . . . . . 377 . Explosions 3666 | . . . . . 49 . . 213 . . 64 . 68 . 261 2447 . . . 37 527 . . Melee . | . . . . . . . . . . . . . . . . . . . . . . . . Ramming 357 | . 4 3 . 31 7 . 13 . . 36 . . . . . 38 . . . 14 76 135 . Kinetic 4924 | . 104 . . . 193 . . . . 33 . . . . 140 186 . . . 251 . 4017 . Thermal 1811 | . 100 . . . 485 424 182 213 . . 64 . 68 . 110 48 . . . . . . 117 Explosive 2963 | . . . . . . . . . . . . . . . . 2399 . . . 37 527 . . Electromagnetic 2743 | . . . . . 141 409 132 324 209 560 454 70 145 . 222 . . . . . . . 77 Impact . | . . . . . . . . . . . . . . . . . . . . . . . . Slashing . | . . . . . . . . . . . . . . . . . . . . . . . . Piercing . | . . . . . . . . . . . . . . . . . . . . . . . . Highest Corruption 17 | . . . . . 1 3 3 3 . . . 2 3 3 14 . 1 . 2 2 3 17 17 Average Corruption 4 | . . . . . 1 2 3 3 . . . 1 2 3 5 . 1 . 1 2 2 9 17 Corruption Purged 2 | . . . . . . . . . . . . 2 . . . . . . . . . . . Effects 61 | . . . . . . 10 4 4 . . . 2 2 1 5 . 1 . . 2 2 18 10 Message Errors 14 | . . . . . . 4 1 . . . . . 1 . 1 . . . . 1 . 4 2 Matter Fused 15 | . . . . . . 2 2 2 . . . . 1 1 1 . . . . . . 4 2 Heat Flow Errors 9 | . . . . . . 1 1 2 . . . 1 . . 1 . . . . . . 2 1 Energy Discharges 7 | . . . . . . 2 . . . . . 1 . . 1 . 1 . . . . 1 1 Data Loss (minor) 7 | . . . . . . 1 . . . . . . . . 1 . . . . 1 2 1 1 Alerts 1 | . . . . . . . . . . . . . . . . . . . . . . 1 . Misdirections 6 | . . . . . . . . . . . . . . . . . . . . . . 3 3 Weapon Failures 2 | . . . . . . . . . . . . . . . . . . . . . . 2 . Overload Shots . | . . . . . . . . . . . . . . . . . . . . . . . . Overflow Damage 215 | . . . . . . . . 14 . . . . . . . 182 . . . . 6 13 . Projectiles 13 | . . . . . . . . . . . . . . . . . . . . . . 13 . Explosions 179 | . . . . . . . . 14 . . . . . . . 159 . . . . 6 . . Melee 23 | . . . . . . . . . . . . . . . . 23 . . . . . . . Knockbacks 9 | . . . . . . . . . . . . . . . . . . . . . . 9 . Impact 2 | . . . . . . . . . . . . . . . . . . . . . . 2 . Kinetic 6 | . . . . . . . . . . . . . . . . . . . . . . 6 . Secondary 1 | . . . . . . . . . . . . . . . . . . . . . . 1 . Self-Inflicted Damage 340 | . . . . . 29 . . 17 . 18 . . . . 74 19 . . . 29 94 60 . Shots 9 | . . . . . 1 . . 1 . . . . . . 3 . . . . 1 3 . . Rammed 34 | . 1 1 . 5 2 . . . . 1 . . . . 1 1 . . . 1 6 15 . Targets Rammed 35 | . 1 1 . 5 2 . 1 . . 1 . . . . 1 1 . . . 1 6 15 . Kicked . | . . . . . . . . . . . . . . . . . . . . . . . . Crushed 1 | . . . . . . . 1 . . . . . . . . . . . . . . . . Highest Temperature 717 | . 117 . . . 126 717 146 287 18 19 17 124 6 . 133 375 113 195 198 180 199 262 122 Average Temperature 98 | . 53 . . . 52 247 33 71 15 5 13 71 4 . 69 119 55 89 148 56 139 61 42 Received Heat Transfer 1921 | . 60 . . . 288 324 9 24 18 99 27 . 59 . 159 39 . . 18 36 171 497 93 Effects 25 | . . . . . . 25 . . . . . . . . . . . . . . . . . Shutdowns 4 | . . . . . . 4 . . . . . . . . . . . . . . . . . Energy Bleed 4 | . . . . . . 4 . . . . . . . . . . . . . . . . . Matter Decay 5 | . . . . . . 5 . . . . . . . . . . . . . . . . . Short Circuit 2 | . . . . . . 2 . . . . . . . . . . . . . . . . . Damage (minor) 2 | . . . . . . 2 . . . . . . . . . . . . . . . . . Damage (major) 6 | . . . . . . 6 . . . . . . . . . . . . . . . . . Damage (core) 2 | . . . . . . 2 . . . . . . . . . . . . . . . . . Siege Activations . | . . . . . . . . . . . . . . . . . . . . . . . . Robots Corrupted 6 | . . . . . 1 . . 1 1 1 2 . . . . . . . . . . . . Combat Hostiles 4 | . . . . . . . . 1 1 1 1 . . . . . . . . . . . . Parts Fried 18 | . . . . . 1 1 . 2 1 6 6 . . . . 1 . . . . . . . Impact Corruptions 1 | . . . . . . . . . . . . . . . . 1 . . . . . . . Robots Melted . | . . . . . . . . . . . . . . . . . . . . . . . . Combat Hostiles . | . . . . . . . . . . . . . . . . . . . . . . . . Parts Melted 8 | . . . . . 2 3 2 . . 1 . . . . . . . . . . . . . Heat Transferred 3336 | . 296 . . . 1160 999 333 200 . . 50 . . . 100 50 . . . . . . 148 Parts Sabotaged 4 | . . . . . . . . . . . . . . . 4 . . . . . . . . Parts Stolen . | . . . . . . . . . . . . . . . . . . . . . . . . Parts Stripped . | . . . . . . . . . . . . . . . . . . . . . . . . Power Chain Reactions 8 | . . . . . 2 . . 3 . . 1 . 1 . 1 . . . . . . . . Missiles Intercepted . | . . . . . . . . . . . . . . . . . . . . . . . . Alert | -11 -10 -10 -10 -9 -8 -8 -8 -8 -7 -7 -6 -6 -6 -6 -5 -5 -5 -4 -4 -4 -4 -3 -3 ------- Run | Scr Mat Min Exi Min Mat Gar Mat Gar Fac Gar Fac Low Low Dat Pro Fac Gar Fac Gar Fac Gar Res Gar Peak Influence 495 | . 82 22 . . 334 495 376 361 209 417 272 . . . . 317 99 359 229 176 224 251 98 Initial 193 | . . 22 . . . 90 176 185 140 112 162 . . . . 88 97 43 193 88 94 94 48 Average 174 | . 46 22 . . 150 330 257 275 175 287 238 . . . . 134 98 276 196 114 159 115 67 Maximum Alert Level 2 | . . . . . 1 2 1 1 1 2 1 . . . . 1 . 1 1 . 1 1 . Low Security (%) 64 | 100 100 100 . 100 64 10 15 33 97 18 15 . . . . 86 100 26 79 100 89 94 100 Level 1 31 | . . . . . 35 57 84 66 2 70 84 . . . . 13 . 73 20 . 10 5 . Level 2 4 | . . . . . . 31 . . . 11 . . . . . . . . . . . . . Level 3 . | . . . . . . . . . . . . . . . . . . . . . . . . Level 4 . | . . . . . . . . . . . . . . . . . . . . . . . . Level 5 . | . . . . . . . . . . . . . . . . . . . . . . . . High Security . | . . . . . . . . . . . . . . . . . . . . . . . . Max Security . | . . . . . . . . . . . . . . . . . . . . . . . . Squads Dispatched 17 | . . . . . . . . . 1 . 3 . . . 1 6 . . . 4 . 2 . Investigation 4 | . . . . . . . . . . . . . . . . 2 . . . 1 . 1 . Extermination 2 | . . . . . . . . . . . . . . . . 1 . . . . . 1 . Reinforcement 7 | . . . . . . . . . 1 . 2 . . . . 3 . . . 1 . . . Assault 1 | . . . . . . . . . . . . . . . 1 . . . . . . . . Garrison 3 | . . . . . . . . . . . 1 . . . . . . . . 2 . . . Intercept . | . . . . . . . . . . . . . . . . . . . . . . . . Construction Impeded 1 | . . . . . . . . . . . . . . . . 1 . . . . . . . Haulers Reinforced 3 | . . . . . . . . . 1 . . . . . . 2 . . . . . . . Cargo Convoy Interrupts . | . . . . . . . . . . . . . . . . . . . . . . . . Stealth | -11 -10 -10 -10 -9 -8 -8 -8 -8 -7 -7 -6 -6 -6 -6 -5 -5 -5 -4 -4 -4 -4 -3 -3 --------- Run | Scr Mat Min Exi Min Mat Gar Mat Gar Fac Gar Fac Low Low Dat Pro Fac Gar Fac Gar Fac Gar Res Gar Distress Signals 13 | . . . . . 4 . . . . . . . . . 1 1 . . . . . 7 . Communications Jammed . | . . . . . . . . . . . . . . . . . . . . . . . . Distress Signals . | . . . . . . . . . . . . . . . . . . . . . . . . Times Spotted 196 | . 4 . . . 18 12 6 9 4 15 6 1 13 . 17 11 6 . 11 4 9 35 15 Peak Tracking Total 13 | . 2 . . . 8 4 2 3 2 4 2 1 10 . 7 4 6 . 11 2 6 13 10 Tactical Retreats 22 | . . . . . 2 . . . . 1 . . 2 . 6 1 1 . 1 . 3 5 . Traps | -11 -10 -10 -10 -9 -8 -8 -8 -8 -7 -7 -6 -6 -6 -6 -5 -5 -5 -4 -4 -4 -4 -3 -3 ------- Run | Scr Mat Min Exi Min Mat Gar Mat Gar Fac Gar Fac Low Low Dat Pro Fac Gar Fac Gar Fac Gar Res Gar Traps Triggered 15 | . . . . . 2 . 1 5 . 2 . . . . . . . . 1 . 2 1 1 Indirectly . | . . . . . . . . . . . . . . . . . . . . . . . . Trap Hack Attempts . | . . . . . . . . . . . . . . . . . . . . . . . . Triggered . | . . . . . . . . . . . . . . . . . . . . . . . . Disarmed . | . . . . . . . . . . . . . . . . . . . . . . . . Reprogrammed 4 | . . . . . . . . . . . . . . . . 4 . . . . . . . Reused 1 | . . . . . . . . . . . . . . . . 1 . . . . . . . Traps Extracted . | . . . . . . . . . . . . . . . . . . . . . . . . Installed . | . . . . . . . . . . . . . . . . . . . . . . . . Triggered 1 | . . . . . . . . . . . . . . . . 1 . . . . . . . Machines | -11 -10 -10 -10 -9 -8 -8 -8 -8 -7 -7 -6 -6 -6 -6 -5 -5 -5 -4 -4 -4 -4 -3 -3 ---------- Run | Scr Mat Min Exi Min Mat Gar Mat Gar Fac Gar Fac Low Low Dat Pro Fac Gar Fac Gar Fac Gar Res Gar Machines Disabled 9 | . . . . . . 1 . . . . . . . . . 6 . . . 1 . . 1 Max in Single Turn 2 | . . . . . . 1 . . . . . . . . . 2 . . . 1 . . 1 Garrison Relay 2 | . . . . . . 1 . . . . . . . . . . . . . . . . 1 Machines Sabotaged . | . . . . . . . . . . . . . . . . . . . . . . . . Garrisons Compromised . | . . . . . . . . . . . . . . . . . . . . . . . . Overloaded Fab Kills . | . . . . . . . . . . . . . . . . . . . . . . . . Fab Network Shutdowns 1 | . . . . . . . . . . . . . . . . . . 1 . . . . . Hacking | -11 -10 -10 -10 -9 -8 -8 -8 -8 -7 -7 -6 -6 -6 -6 -5 -5 -5 -4 -4 -4 -4 -3 -3 --------- Run | Scr Mat Min Exi Min Mat Gar Mat Gar Fac Gar Fac Low Low Dat Pro Fac Gar Fac Gar Fac Gar Res Gar Machines Accessed 33 | . 3 . 2 1 3 . 3 . 1 . 3 . . 3 . 6 . 2 . 3 . 3 . Terminals 15 | . 3 . . 1 1 . 2 . . . 1 . . . . 3 . . . 2 . 2 . Fabricators 4 | . . . . . . . . . . . 1 . . . . 2 . 1 . . . . . Repair Stations 1 | . . . . . 1 . . . . . . . . . . . . . . . . . . Recycling Units . | . . . . . . . . . . . . . . . . . . . . . . . . Scanalyzers . | . . . . . . . . . . . . . . . . . . . . . . . . Garrison Access 8 | . . . . . 1 . 1 . 1 . 1 . . . . 1 . 1 . 1 . 1 . Total Hacks 88 | . 6 . 2 1 7 . 8 . 1 . 4 . . 24 . 17 . 6 . 7 . 5 . Successful 64 | . 4 . 2 1 6 . 2 . 1 . 4 . . 24 . 8 . 5 . 3 . 4 . Failed 24 | . 2 . . . 1 . 6 . . . . . . . . 9 . 1 . 4 . 1 . Catastrophic 4 | . . . . . . . 3 . . . . . . . . 1 . . . . . . . Database Lockouts . | . . . . . . . . . . . . . . . . . . . . . . . . Manual 26 | . 5 . 1 1 2 . 7 . . . 1 . . . . 4 . . . 4 . 1 . Terminals 37 | . 6 . . 1 2 . 7 . . . 2 . . . . 9 . . . 6 . 4 . Fabricators 12 | . . . . . . . . . . . 1 . . . . 7 . 4 . . . . . Repair Stations 4 | . . . . . 4 . . . . . . . . . . . . . . . . . . Recycling Units . | . . . . . . . . . . . . . . . . . . . . . . . . Scanalyzers . | . . . . . . . . . . . . . . . . . . . . . . . . Garrison Access 9 | . . . . . 1 . 1 . 1 . 1 . . . . 1 . 2 . 1 . 1 . Terminal Hacks 41 | . 4 . 2 1 1 . 1 . . . 2 . . 24 . 3 . . . 1 . 2 . Record 7 | . . . 1 . . . . . . . . . . 6 . . . . . . . . . Part Schematic 10 | . 1 . . . . . . . . . . . . 8 . 1 . . . . . . . Robot Schematic 7 | . . . . . . . . . . . . . . 7 . . . . . . . . . Robot Analysis 2 | . 2 . . . . . . . . . . . . . . . . . . . . . . Prototype ID Bank 3 | . . . . . . . . . . . . . . 3 . . . . . . . . . Level Access Points 1 | . . . . 1 . . . . . . . . . . . . . . . . . . . Branch Access Points 2 | . 1 . . . . . . . . . 1 . . . . . . . . . . . . Garrison Index 6 | . . . . . 1 . 1 . . . 1 . . . . 1 . . . 1 . 1 . Reprogram Traps 1 | . . . . . . . . . . . . . . . . 1 . . . . . . . Hauler Manifests 1 | . . . . . . . . . . . . . . . . . . . . . . 1 . EX-Prototype ID Bank 1 | . . . 1 . . . . . . . . . . . . . . . . . . . . Fabricator Hacks 8 | . . . . . . . . . . . 1 . . . . 4 . 3 . . . . . Load Schematic 3 | . . . . . . . . . . . . . . . . 2 . 1 . . . . . Build 5 | . . . . . . . . . . . 1 . . . . 2 . 2 . . . . . Repair Station Hacks 4 | . . . . . 4 . . . . . . . . . . . . . . . . . . Scan Component 2 | . . . . . 2 . . . . . . . . . . . . . . . . . . Repair 2 | . . . . . 2 . . . . . . . . . . . . . . . . . . Recycling Unit Hacks . | . . . . . . . . . . . . . . . . . . . . . . . . Scanalyzer . | . . . . . . . . . . . . . . . . . . . . . . . . Garrison Access Hacks 9 | . . . . . 1 . 1 . 1 . 1 . . . . 1 . 2 . 1 . 1 . Unlock Access 8 | . . . . . 1 . 1 . 1 . 1 . . . . 1 . 1 . 1 . 1 . Coupler Status 1 | . . . . . . . . . . . . . . . . . . 1 . . . . . Unauthorized Hacks 2 | . . . . . . . . . . . . . . . . . . . . 1 . 1 . Terminals 2 | . . . . . . . . . . . . . . . . . . . . 1 . 1 . Botnet 2 | . . . . . . . . . . . . . . . . . . . . 1 . 1 . Fabricators . | . . . . . . . . . . . . . . . . . . . . . . . . Repair Stations . | . . . . . . . . . . . . . . . . . . . . . . . . Recycling Units . | . . . . . . . . . . . . . . . . . . . . . . . . Scanalyzers . | . . . . . . . . . . . . . . . . . . . . . . . . Garrison Access . | . . . . . . . . . . . . . . . . . . . . . . . . Data Cores Recovered 1 | . . . . . . . . . . . 1 . . . . . . . . . . . . Used 1 | . . . . . . . . . . . 1 . . . . . . . . . . . . Hacking Detections 20 | . 2 . . 1 1 . 3 . . . 1 . . . . 6 . 1 . 2 . 3 . Full Trace Events 5 | . . . . . . . 2 . . . . . . . . 2 . . . 1 . . . Feedback Events . | . . . . . . . . . . . . . . . . . . . . . . . . Feedback Blocked . | . . . . . . . . . . . . . . . . . . . . . . . . Robot Schematics Acquired 7 | . . . . . . . . . . . . . . 7 . . . . . . . . . Robots Built . | . . . . . . . . . . . . . . . . . . . . . . . . Matter . | . . . . . . . . . . . . . . . . . . . . . . . . Time . | . . . . . . . . . . . . . . . . . . . . . . . . Total Robot Build Rating . | . . . . . . . . . . . . . . . . . . . . . . . . Part Schematics Acquired 10 | . 1 . . . . . . . . . . . . 8 . 1 . . . . . . . Parts Built 7 | . . . . . . . . . . . 1 . . . . 4 . 2 . . . . . Matter 1184 | . . . . . . . . . . . 190 . . . . 424 . 570 . . . . . Time 305 | . . . . . . . . . . . 47 . . . . 106 . 152 . . . . . Total Part Build Rating 39 | . . . . . . . . . . . 5 . . . . 24 . 10 . . . . . Parts Repaired 2 | . . . . . 2 . . . . . . . . . . . . . . . . . . Time 52 | . . . . . 52 . . . . . . . . . . . . . . . . . . Parts Recycled . | . . . . . . . . . . . . . . . . . . . . . . . . Recycled Matter . | . . . . . . . . . . . . . . . . . . . . . . . . Retrieved Matter . | . . . . . . . . . . . . . . . . . . . . . . . . Retrieved Components . | . . . . . . . . . . . . . . . . . . . . . . . . Parts Scanalyzed . | . . . . . . . . . . . . . . . . . . . . . . . . Part Schematics Acquired . | . . . . . . . . . . . . . . . . . . . . . . . . Parts Damaged . | . . . . . . . . . . . . . . . . . . . . . . . . Bothacking | -11 -10 -10 -10 -9 -8 -8 -8 -8 -7 -7 -6 -6 -6 -6 -5 -5 -5 -4 -4 -4 -4 -3 -3 ------------ Run | Scr Mat Min Exi Min Mat Gar Mat Gar Fac Gar Fac Low Low Dat Pro Fac Gar Fac Gar Fac Gar Res Gar Used RIF Installer 6 | . . . . . . 1 . 1 . 1 . . . . . . 1 . 1 . 1 . . Threat Obfuscator 1 | . . . . . . . . . . 1 . . . . . . . . . . . . . Zone Cloak 1 | . . . . . . . . . . . . . . . . . . . 1 . . . . Robot Detection 1 | . . . . . . . . 1 . . . . . . . . . . . . . . . Patrol Navigation 1 | . . . . . . . . . . . . . . . . . 1 . . . . . . Alert ID Control 1 | . . . . . . . . . . . . . . . . . . . . . 1 . . Robots Hacked 7 | . . . . . . . . . . 3 . . . . . . . . . . . . 4 Non-combat . | . . . . . . . . . . . . . . . . . . . . . . . . Combat 7 | . . . . . . . . . . 3 . . . . . . . . . . . . 4 Robot Hacks Applied 7 | . . . . . . . . . . 3 . . . . . . . . . . . . 4 overwrite_iff 1 | . . . . . . . . . . . . . . . . . . . . . . . 1 formatsys_high 6 | . . . . . . . . . . 3 . . . . . . . . . . . . 3 Relay Couplers Released 9 | . . . . . . 5 . . . . . . . . . . . . . . . . 4 Machine Destruction 9 | . . . . . . 5 . . . . . . . . . . . . . . . . 4 Attached 9 | . . . . . . . . . . 2 . . . . . 1 . . . . . . 6 Robots Rewired 2 | . . . . . . . . . . . 1 . . . 1 . . . . . . . . Allies Hacked 1 | . . . . . . . . . . 1 . . . . . . . . . . . . . Hacks Repelled . | . . . . . . . . . . . . . . . . . . . . . . . . Allies | -11 -10 -10 -10 -9 -8 -8 -8 -8 -7 -7 -6 -6 -6 -6 -5 -5 -5 -4 -4 -4 -4 -3 -3 -------- Run | Scr Mat Min Exi Min Mat Gar Mat Gar Fac Gar Fac Low Low Dat Pro Fac Gar Fac Gar Fac Gar Res Gar Total Allies 11 | . . 1 . . . . . . . 3 1 . . . 2 . . . . . . . 4 Largest Group 3 | . . 1 1 . . . . . . 2 1 . . . 2 . . . . . . . 3 Highest-Rated Group 172 | . . 31 31 . . . . . . 32 29 . . . 110 . . . . . . . 172 Highest-Rated Ally 95 | . . 31 31 . . . . . . 28 29 . . . 95 . . . . . . . 64 Total Orders . | . . . . . . . . . . . . . . . . . . . . . . . . Ally Attacks 57 | . . . . . . . . . . 26 . . . . 24 . . . . . . . 7 Total Damage 1487 | . . . . . . . . . . 495 . . . . 688 . . . . . . . 304 Kills 9 | . . . . . . . . . . 3 . . . . 5 . . . . . . . 1 Allies Corrupted . | . . . . . . . . . . . . . . . . . . . . . . . . Allies Melted . | . . . . . . . . . . . . . . . . . . . . . . . . Intel | -11 -10 -10 -10 -9 -8 -8 -8 -8 -7 -7 -6 -6 -6 -6 -5 -5 -5 -4 -4 -4 -4 -3 -3 ------- Run | Scr Mat Min Exi Min Mat Gar Mat Gar Fac Gar Fac Low Low Dat Pro Fac Gar Fac Gar Fac Gar Res Gar Robot Analysis Total 2 | . 2 . . . . . . . . . . . . . . . . . . . . . . Derelict Logs Recovered 3 | . . . . . . . . . . . . 1 1 . 1 . . . . . . . . Drone Launches . | . . . . . . . . . . . . . . . . . . . . . . . . Drone Recoveries . | . . . . . . . . . . . . . . . . . . . . . . . . Exploration | -11 -10 -10 -10 -9 -8 -8 -8 -8 -7 -7 -6 -6 -6 -6 -5 -5 -5 -4 -4 -4 -4 -3 -3 ------------- Run | Scr Mat Min Exi Min Mat Gar Mat Gar Fac Gar Fac Low Low Dat Pro Fac Gar Fac Gar Fac Gar Res Gar Turns Passed 6420 | 5 238 93 438 192 628 592 284 197 83 261 126 179 184 31 226 847 44 358 48 255 179 747 185 Spaces Moved 5270 | 5 139 57 272 116 282 308 185 202 157 346 89 299 320 81 396 674 97 151 92 226 223 480 73 Core 1 | . . . . . . . 1 . . . . . . . . . . . . . . . . Treads 1260 | . 92 57 272 116 282 308 127 . . . . . . . . . . . . . . 3 3 Legs 52 | 5 47 . . . . . . . . . . . . . . . . . . . . . . Wheels . | . . . . . . . . . . . . . . . . . . . . . . . . Hover 3957 | . . . . . . . 57 202 157 346 89 299 320 81 396 674 97 151 92 226 223 477 70 Flight . | . . . . . . . . . . . . . . . . . . . . . . . . Fastest Speed 35 | 120 120 160 160 160 160 160 38 38 36 36 36 36 36 38 38 37 46 42 35 54 58 46 150 Average Speed 77 | 120 146 160 160 160 160 160 126 38 36 37 36 36 40 38 45 46 46 43 44 72 66 65 175 Slowest Speed 600 | 120 160 160 160 160 160 260 600 38 38 38 38 38 230 38 111 107 46 46 54 124 124 150 260 Overloaded Moves 17 | . . . . . . . . . . . . . . . . . . . 17 . . . . Propulsion Burnouts . | . . . . . . . . . . . . . . . . . . . . . . . . Robots Hopped . | . . . . . . . . . . . . . . . . . . . . . . . . Cave-ins Triggered 1 | . . . . . . . . . . . . . . . . . . . . 1 . . . Exploration Rate (%) 32 | 2 36 21 68 41 24 55 20 44 6 65 2 54 51 75 44 22 42 5 27 7 47 13 18 Regions Visited 23 Branch Regions 7 Pre-discovered Areas 2 | . . . 1 . . . . . . . . . . 1 . . . . . . . . . Known Exits Taken 17 | 1 1 1 1 1 1 . 1 . 1 . 1 1 1 1 1 1 . 1 . 1 . 1 . Unknown Exits Taken . | . . . . . . . . . . . . . . . . . . . . . . . . Scrap Searched 3 | . . 1 . . . . . . . . . 1 . . 1 . . . . . . . . Spaces Dug . | . . . . . . . . . . . . . . . . . . . . . . . . Terrain Destroyed 226 | . . . . . 7 . . 6 . . . . 4 . 12 125 . . . 14 53 5 . Melee . | . . . . . . . . . . . . . . . . . . . . . . . . Projectile 5 | . . . . . . . . . . . . . . . . . . . . . . 5 . AOE 221 | . . . . . 7 . . 6 . . . . 4 . 12 125 . . . 14 53 . . Terrain Rammed . | . . . . . . . . . . . . . . . . . . . . . . . . Walls Destroyed . | . . . . . . . . . . . . . . . . . . . . . . . . Machines Disabled . | . . . . . . . . . . . . . . . . . . . . . . . . Actions | -11 -10 -10 -10 -9 -8 -8 -8 -8 -7 -7 -6 -6 -6 -6 -5 -5 -5 -4 -4 -4 -4 -3 -3 --------- Run | Scr Mat Min Exi Min Mat Gar Mat Gar Fac Gar Fac Low Low Dat Pro Fac Gar Fac Gar Fac Gar Res Gar Total 7152 | 4 155 58 275 120 403 361 224 302 171 440 169 349 357 80 423 1189 95 443 97 304 244 773 116 Wait 1195 | . . . . . 50 10 . 32 . 38 56 38 24 . 4 443 . 275 . 58 . 165 2 Move 5247 | 4 138 56 271 115 282 306 185 200 157 344 88 298 319 80 395 673 95 151 90 226 221 480 73 Hop . | . . . . . . . . . . . . . . . . . . . . . . . . Pick Up 59 | . 2 1 2 . 13 5 6 . 3 2 5 1 2 . . 11 . 4 . . . 2 . Fast Attach 57 | . 1 . . . 3 2 6 . 2 . 1 . 3 . 5 12 . 3 . 3 . 9 7 Attach 43 | . 2 . . . 5 . 1 . . 2 . 1 1 . 6 6 . 3 . 2 . 9 5 Detach 18 | . 2 . . . 2 . . . . 2 . 1 . . . 3 . . . 2 . 5 1 Swap 27 | . . . 1 . 4 4 1 . . 5 . . . . . 4 . 2 . 1 . 5 . Drop 71 | . . . 1 . 10 9 12 . 3 . 5 1 . . . 18 . 5 . 4 . 3 . Fire 273 | . 9 . . . 32 25 12 9 6 19 8 9 8 . 9 18 . . . 7 7 80 15 Melee 2 | . . . . . . . . . . 2 . . . . . . . . . . . . . Ram 23 | . . . . . . . . . . 1 . . . . 1 1 . . . 1 6 13 . Kick . | . . . . . . . . . . . . . . . . . . . . . . . . Crush 12 | . 1 1 . 5 2 . 1 . . . . . . . . . . . . . . 2 . Escape Stasis 114 | . . . . . . . . 61 . 23 . . . . . . . . 7 . 10 . 13 Rewire 11 | . . . . . . . . . . 2 6 . . . 3 . . . . . . . . Trap . | . . . . . . . . . . . . . . . . . . . . . . . . Miscellaneous . | . . . . . . . . . . . . . . . . . . . . . . . . Route ------- -11/Scrapyard -10/Materials (discovered 2 exits: *Min x2) -10/Mines (discovered 2 exits: *Mat / *Exi) -10/Exiles (discovered 2 exits: *Min x2) -9/Mines (discovered 2 exits: *Mat x2) -8/Materials -8/Garrison (discovered 3 exits: *Mat x3) -8/Materials (discovered 2 exits: *Fac / Gar) -8/Garrison (discovered 2 exits: *Fac x2) -7/Factory (discovered 3 exits: *Fac x2 / Gar) -7/Garrison (discovered 3 exits: *Fac x3) -6/Factory (discovered 5 exits: *Low x2 / Ext x2 / Gar) -6/Lower Caves -6/Lower Caves -6/Data Miner -5/Proximity Caves -5/Factory -5/Garrison -4/Factory -4/Garrison -4/Factory -4/Garrison (discovered 2 exits: *Res x2) -3/Research -3/Garrison History --------- Turn | Location | Event 1 | -11/Scrapyard | Identified exit to Materials 1 | -11/Scrapyard | Discovered exit to Materials (range 1) 6 | -11/Scrapyard | Entered Materials 6 | -10/Materials | Evolved 1 slot: Utility x1 161 | -10/Materials | Identified exit to Mines 244 | -10/Materials | Entered Mines 247 | -10/Mines | Received a Mining Laser from a helpful Derelict 282 | -10/Mines | Identified exit to Materials 282 | -10/Mines | Discovered exit to Materials (range 12) 311 | -10/Mines | Build established: Hacker-Mutant 329 | -10/Mines | Deemed a non-threat by the Exiles lab entrance 330 | -10/Mines | Identified exit to Exiles 330 | -10/Mines | Discovered exit to Exiles (range 5) 337 | -10/Mines | Entered Exiles 337 | -10/Exiles | Accompanied by 1 ally 363 | -10/Exiles | Identified exit to Mines 363 | -10/Exiles | Discovered exit to Mines (range 15) 381 | -10/Exiles | Met 8R-AWN 403 | -10/Exiles | Met EX-HEX 490 | -10/Exiles | Met EX-DEC 516 | -10/Exiles | Learned location of Zion (-7) 545 | -10/Exiles | Met EX-BIN 567 | -10/Exiles | Aligned with FarCom system 569 | -10/Exiles | Given EX-Vault access code 606 | -10/Exiles | Opened EX-Vault 620 | -10/Exiles | Found Latent Energy Streamer 655 | -10/Exiles | Warned to stay clear of 0b10 Research branches 762 | -10/Exiles | Discovered exit to Mines (range 10) 775 | -10/Exiles | Left Exiles lab with Latent Energy Streamer 775 | -10/Exiles | Entered Mines 785 | -9/Mines | Identified exit to Materials 967 | -9/Mines | Entered Materials 967 | -8/Materials | Evolved 4 slots: Propulsion x2, Utility x2 1107 | -8/Materials | Repaired Lgt. Armor Plating 1138 | -8/Materials | Repaired Lgt. Armor Plating 1595 | -8/Materials | Identified exit to Garrison 1595 | -8/Materials | Entered Garrison 1642 | -8/Garrison | Triggered checkpoint 1660 | -8/Garrison | Garrison Relay disabled 1766 | -8/Garrison | Triggered checkpoint 1812 | -8/Garrison | Core integrity fell below 50% 1860 | -8/Garrison | Identified exit to Materials 1860 | -8/Garrison | Discovered exit to Materials (range 9) 1968 | -8/Garrison | Discovered exit to Materials (range 9) 2054 | -8/Garrison | Triggered checkpoint 2137 | -8/Garrison | Build established: Scavenger-Mutant 2142 | -8/Garrison | Discovered exit to Materials (range 13) 2176 | -8/Garrison | Installed Relay Interface Framework 2187 | -8/Garrison | Entered Materials 2408 | -8/Materials | Identified exit to Factory 2408 | -8/Materials | Discovered exit to Factory (range 14) 2471 | -8/Materials | Identified exit to Garrison 2471 | -8/Materials | Entered Garrison 2564 | -8/Garrison | Triggered checkpoint 2577 | -8/Garrison | Discovered exit to Factory (range 19) 2616 | -8/Garrison | Triggered checkpoint 2661 | -8/Garrison | Discovered exit to Factory (range 8) 2666 | -8/Garrison | Expanded RIF knowledge: Robot Detection 2668 | -8/Garrison | Entered Factory 2668 | -7/Factory | Evolved 2 slots: Propulsion x1, Utility x1 2676 | -7/Factory | Identified exit to Factory 2676 | -7/Factory | Discovered exit to Factory (range 7) 2712 | -7/Factory | Build established: Bothacker-Mutant 2743 | -7/Factory | Discovered exit to Factory (range 12) 2751 | -7/Factory | Identified exit to Garrison 2751 | -7/Factory | Entered Garrison 2768 | -7/Garrison | Triggered checkpoint 2773 | -7/Garrison | Triggered checkpoint 2826 | -7/Garrison | Discovered exit to Factory (range 9) 2888 | -7/Garrison | Triggered checkpoint 2945 | -7/Garrison | Triggered checkpoint 2952 | -7/Garrison | Discovered exit to Factory (range 8) 3003 | -7/Garrison | Discovered exit to Factory (range 17) 3011 | -7/Garrison | Expanded RIF knowledge: Threat Obfuscation 3012 | -7/Garrison | Entered Factory 3012 | -6/Factory | Evolved 2 slots: Propulsion x1, Utility x1 3019 | -6/Factory | Identified exit to Lower Caves 3019 | -6/Factory | Identified exit to Extension 3049 | -6/Factory | Garrison activated, responded to threat 3067 | -6/Factory | Identified exit to Garrison 3117 | -6/Factory | Fabricated Proton Cannon (x1) 3138 | -6/Factory | Entered Lower Caves 3160 | -6/Lower Caves | Identified exit to Lower Caves 3317 | -6/Lower Caves | Entered another Lower Caves area 3322 | -6/Lower Caves | Learned Factory trap positions 3465 | -6/Lower Caves | Attacked by a faux Warlord 3500 | -6/Lower Caves | Identified exit to Data Miner 3500 | -6/Lower Caves | Discovered exit to Data Miner (range 4) 3501 | -6/Lower Caves | Entered Data Miner 3501 | -6/Data Miner | Identified exit to Proximity Caves 3501 | -6/Data Miner | Discovered exit to Proximity Caves (range 6) 3507 | -6/Data Miner | Met Data Miner 3518 | -6/Data Miner | Learned location of Section 7 (-2) 3518 | -6/Data Miner | Acquired the access code to Warlord's prototype stash 3524 | -6/Data Miner | Received God Mode back door access code from Data Miner 3532 | -6/Data Miner | Entered Proximity Caves 3552 | -5/Proximity Caves | Escorted by Enhanced Grunt 3596 | -5/Proximity Caves | Attracted the attention of an 0b10 outpost 3624 | -5/Proximity Caves | Learned Factory security intel 3714 | -5/Proximity Caves | System corruption reached 10% 3743 | -5/Proximity Caves | Lost 6 parts (1p3n1u1w) 3749 | -5/Proximity Caves | Identified exit to Factory 3749 | -5/Proximity Caves | Discovered exit to Factory (range 13) 3758 | -5/Proximity Caves | Entered Factory 3758 | -5/Factory | Evolved 2 slots: Propulsion x1, Utility x1 3759 | -5/Factory | Loaded intel: 90 trap records 3802 | -5/Factory | Found Launcher Loader 3806 | -5/Factory | Found Launcher Loader 3923 | -5/Factory | Incoming investigation squad redirected 4339 | -5/Factory | Fabricated Cmb. Gravmag System (x2) 4392 | -5/Factory | Fabricated Cmb. Gravmag System (x2) 4442 | -5/Factory | Incoming investigation squad redirected 4605 | -5/Factory | Identified exit to Garrison 4605 | -5/Factory | Entered Garrison 4626 | -5/Garrison | Triggered checkpoint 4639 | -5/Garrison | Identified exit to Factory 4639 | -5/Garrison | Discovered exit to Factory (range 14) 4647 | -5/Garrison | Expanded RIF knowledge: Patrol Navigation 4649 | -5/Garrison | Entered Factory 4649 | -4/Factory | Evolved 2 slots: Propulsion x1, Utility x1 4742 | -4/Factory | Fabricated Lgt. Regenerative Plating (x1) 4745 | -4/Factory | Local fabrication network quarantined 4820 | -4/Factory | Fabricated Lgt. Regenerative Plating (x1) 5007 | -4/Factory | Identified exit to Garrison 5007 | -4/Factory | Entered Garrison 5010 | -4/Garrison | Expanded RIF knowledge: Zone Cloak 5024 | -4/Garrison | Triggered checkpoint 5024 | -4/Garrison | Spotted B-86 Titan 5049 | -4/Garrison | Identified exit to Factory 5049 | -4/Garrison | Discovered exit to Factory (range 10) 5055 | -4/Garrison | Entered Factory 5290 | -4/Factory | Crushed by falling debris 5310 | -4/Factory | Identified exit to Garrison 5310 | -4/Factory | Entered Garrison 5396 | -4/Garrison | Spotted B-86 Titan 5404 | -4/Garrison | Triggered checkpoint 5418 | -4/Garrison | Identified exit to Research 5418 | -4/Garrison | Discovered exit to Research (range 13) 5450 | -4/Garrison | Triggered checkpoint 5478 | -4/Garrison | Discovered exit to Research (range 8) 5486 | -4/Garrison | Expanded RIF knowledge: Alert ID Control 5489 | -4/Garrison | Entered Research 5489 | -3/Research | Evolved 2 slots: Power x1, Utility x1 5541 | -3/Research | Incoming investigation squad redirected 5694 | -3/Research | Found Prototype Device 5694 | -3/Research | Identified Exp. ECM Suite 5697 | -3/Research | Found Exp. ECM Suite 6027 | -3/Research | Lost 3 parts (1p1n1w) 6069 | -3/Research | System corruption reached 10% 6141 | -3/Research | Lost 13 parts (2p5n5u1w) 6163 | -3/Research | Core integrity fell below 50% 6198 | -3/Research | Lost 5 parts (3n1u1w) 6228 | -3/Research | Core integrity fell below 20% 6236 | -3/Research | Identified exit to Garrison 6236 | -3/Research | Entered Garrison 6260 | -3/Garrison | Triggered checkpoint 6296 | -3/Garrison | Garrison Relay disabled 6390 | -3/Garrison | Triggered checkpoint 6393 | -3/Garrison | Triggered checkpoint 6421 | -3/Garrison | Destroyed by G-67 Veteran with Electrolaser Last Messages --------------- 06394_ Jacked H-77 Assassin... >>overwrite_iff Rewriting IFF filter. 06395_ S-43 Plague destroyed. 06396_ Slug penetrates Wall. 06397_ Warden 8a destroyed. 06400_ Slug penetrates G-67 Veteran. 06401_ H-77 Assassin destroyed. 06402_ Acquired Med. Treads. 06402_ Assassin 8a destroyed. 06405_ Acquired Particle Reactor. 06408_ G-67 Veteran destroyed. 06410_ Acquired Quantum Rifle. 06411_ OSUIVJB%UVZLK2K/XHGKKCJRAFH>CZTKM/M3 06411_ G-67 Veteran destroyed. 06413_ Tesla Rifle destroyed. 06413_ Penetrated by Slug. 06413_ Slug penetrates Wall. 06414_ Acquired 86 matter. 06417_ S-43 Plague destroyed. Map ----- +----------------------------------------------------+ | ?????????????????????????????????????????????????? | | ?????????????????????????????????????????????????? | | ?????????????????????????????????????????????????? | | ?????????????????????????????????????????????????? | | ?????????????????????????????????????????????????? | | ???????????????s?????????????????????????????????? | | ?????????????????????????????????????????????????? | | ?????????????????????????????????????????????????? | | ?????????????????????????????????????????????????? | | ????????????????????????####?????????????????????? | | ???????????????????????? #????????????????????? | | ???????????????????????? ????????????????????? | | ???????????????????????? ????????????????????? | | ?????????????? ?#?????# [!#????????????????????? | | ?????????????? ## ???##=s=###??????????????????? | | ????????????? ?? [%=%!=???????????????????? | | ?????????????? ??? =%s% ???????????????????? | | ???????????????? ?? =! ????????????????????? | | ????????????????? ?? =[ ?????????????##?????? | | ?????????????# ???#Y ?#gg%#?????????????#"###??? | | ????????????## ## g##=%!#?????????????#" #??? | | ????????????? =%= ###???????????# #??? | | ????????????????? %= ; ????????????#" #??? | | ????????????????????? = #?????????????#"# #??? | | ????????????????????????# #??????????????### #??? | | ??????????????????????C?#@ #????????????????# ###? | | ????????????????????????#! #????????????????# #? | | ????????????????????????# #????????????????# #? | | ????????????????????????# #????????????????# #? | | ????????????????????????# #????????????????# ###? | | ????????????????????????# #????????????????# #??? | | ????????????????????????# ##############???# #??? | | ????????????????????????# #???# #??? | | ????????????????????????# ##### #??? | | ????????????????????????############## #??? | | ?????????????????????????????????????# #######??? | | ?????????????????????????????????????# #????????? | | ?????????????????????????????????????# #????????? | | ?????????????????????????????????????# #????????? | | ?????????????????????????????????????# ###??????? | | ?????????????????????????????????????# #??????? | | ?????????????????????????????????????# #??????? | | ?????????????????????????????????????# #??????? | | ?????????????????????????????????????######??????? | | ?????????????????????????????????????????????????? | | ?????????????????????????????????????????????????? | | ?????????????????????????????????????????????????? | | ?????????????????????????????????????????????????? | | ?????????????????????????????????????????????????? | | ?????????????????????????????????????????????????? | +----------------------------------------------------+ Best States ------------- Heat Dissipation 65 Coolant Potential 80 Energy Generation 26 Energy Capacity 515 Matter Stores 300 Matter Capacity 300 Sight Range 20 Terrain Scan Range 14 Terrain Scan Density 85 ECM Strength 3 Armor Coverage 675 Resistance: KI 35 Resistance: TH 35 Resistance: EX 35 Resistance: EM 35 Resistance: I 35 Resistance: S 35 Resistance: P 35 Propulsion Shielding 33 Utility Shielding 33 Evasion (%) 57 Targeting Accuracy 5 Armor Integrity Analysis 35 Recoil Reduction 4 Offensive Hacking 20 Relay Coupler Types 273 Relay Coupler Value 6 Item Schematics ----------------- Huge Storage Unit | -10/Materials | Hacked Combat Drone Bay | -6/Data Miner | Free Lgt. Regenerative Plating | -6/Data Miner | Free Cmb. Gravmag System | -6/Data Miner | Free Exp. Cesium-ion Thruster | -6/Data Miner | Free Exp. Terrain Scanner | -6/Data Miner | Free Cloaking Device | -6/Data Miner | Free Plasma Sword | -6/Data Miner | Free Kinetic Spear | -6/Data Miner | Free Micro-nuke Launcher | -5/Factory | Hacked Robot Schematics ------------------ S-27 Virus | -6/Data Miner | Free G-50 Soldier | -6/Data Miner | Free G-67 Veteran | -6/Data Miner | Free L-41 Fighter | -6/Data Miner | Free P-70 Sage | -6/Data Miner | Free I-36 Angel | -6/Data Miner | Free I-47 Archangel | -6/Data Miner | Free Fabricated ------------ Proton Cannon | x1 | -6/Factory | Preloaded Cmb. Gravmag System | x2 | -5/Factory Cmb. Gravmag System | x2 | -5/Factory Lgt. Regenerative Plating | x1 | -4/Factory Lgt. Regenerative Plating | x1 | -4/Factory Alien Tech Used ----------------- None Achievements -------------- None Challenges ------------ None Game ------ Seed SkeletonInsulatedBroadsword Manual? 0 Play Time 01:03:47 Cumulative 352.1 hours Start 2021.05.19 @ 18:47:34 End 2021.05.20 @ 07:18:30 Sessions 3 Manual Loads 0 Difficulty Explorer Special Mode None Game No. 348 Rogue 146 Adventurer 112 Explorer 90 Win Type - Total 24 Types 17/0/5/2/0/0/0/0/0 Lore% 82 Gallery% 88 Achievement% 71 Wizard Run 0 Options --------- ASCII 0 Keyboard 0 Movement Numpad Keybinds 0 Fullscreen 2 Font 18/TerminusBold Map View 76x50 Tactical HUD 1 Map Filters NONE Filters NONE Steam 1 RUN: bbcb929b-0d52-40ea-93e6-6ed975e9077e